bitfinex-derivatives/quotes_ETHF0:USTF0_20260125
["timestamp","ask_amount","ask_price","bid_price","bid_amount"]
[1769324048234,0.78416431,2945.7,2944.4,3.65348237]
[1769324048436,4.08177339,2945.6,2944.4,3.65348237]
[1769324048629,0.78416431,2945.7,2944.4,3.65348237]
[1769324048829,4.08186447,2945.6,2944.4,3.65348237]
[1769324049030,0.78416431,2945.7,2944.4,3.65348237]
[1769324049231,4.08221704,2945.6,2944.4,3.65348237]
[1769324049542,0.78416431,2945.7,2944.4,3.65348237]
[1769324049736,4.08230674,2945.6,2944.4,3.65348237]
[1769324050035,0.78416431,2945.7,2944.4,3.65348237]
[1769324050238,4.08275013,2945.6,2944.4,3.65348237]
[1769324050437,4.08275013,2945.5,2944.4,3.65348237]
[1769324050637,0.78416431,2945.7,2944.4,3.65348237]
[1769324050837,4.08283613,2945.6,2944.4,3.65348237]
[1769324051136,4.08283613,2945.5,2944.4,3.65348237]
[1769324051337,0.78416431,2945.7,2944.4,3.65348237]
[1769324051537,4.08348398,2945.6,2944.4,3.65348237]
[1769324051737,4.08348398,2945.5,2944.4,3.65348237]
[1769324051938,0.78416431,2945.7,2944.4,3.65348237]
[1769324052236,4.08424204,2945.6,2944.4,3.65348237]
[1769324052425,4.08424204,2945.5,2944.4,3.65348237]
[1769324052624,0.78416431,2945.7,2944.4,3.65348237]
[1769324052841,4.08430991,2945.6,2944.4,3.65348237]
[1769324053138,4.08430991,2945.5,2944.4,3.65348237]
[1769324053327,0.78416431,2945.7,2944.4,3.65348237]
[1769324053636,4.08547045,2945.6,2944.4,3.65348237]
[1769324053836,4.08547045,2945.5,2944.4,3.65348237]
[1769324054032,0.78416431,2945.7,2944.4,3.65348237]
[1769324054233,4.08696008,2945.6,2944.4,3.65348237]
[1769324054435,4.08696008,2945.5,2944.4,3.65348237]
[1769324054635,0.78416431,2945.7,2944.4,3.65348237]
[1769324054835,4.08698161,2945.6,2944.4,3.65348237]
[1769324055036,4.08698161,2945.5,2944.4,3.65348237]
[1769324055340,4.08698161,2945.4,2944.4,3.65348237]
[1769324055639,0.78416431,2945.7,2944.4,3.65348237]
[1769324055838,4.09335626,2945.6,2944.4,3.65348237]
[1769324056038,4.09335626,2945.5,2944.4,3.65348237]
[1769324056240,4.09335626,2945.4,2944.4,3.65348237]
[1769324056541,0.78416431,2945.7,2944.4,3.65348237]
[1769324056840,4.09335033,2945.6,2944.4,3.65348237]
[1769324057041,4.09335033,2945.5,2944.4,3.65348237]
[1769324057232,4.09335033,2945.4,2944.4,3.65348237]
[1769324057432,0.78416431,2945.7,2944.4,3.65348237]
[1769324057633,4.09342442,2945.6,2944.4,3.65348237]
[1769324057935,4.09342442,2945.5,2944.4,3.65348237]
[1769324058229,4.09342442,2945.4,2944.4,3.65348237]
[1769324058435,0.78416431,2945.7,2944.4,3.65348237]
[1769324058640,4.09342568,2945.6,2944.4,3.65348237]
[1769324058842,4.09342568,2945.5,2944.4,3.65348237]
[1769324059143,4.09342568,2945.4,2944.4,3.65348237]
[1769324059334,0.78416431,2945.7,2944.4,3.65348237]
[1769324059533,4.09342909,2945.6,2944.4,3.65348237]
[1769324059734,4.09342909,2945.5,2944.4,3.65348237]
[1769324059942,4.09342909,2945.4,2944.4,3.65348237]
[1769324060142,0.78416431,2945.7,2944.4,3.65348237]
[1769324060441,4.09343197,2945.6,2944.4,3.65348237]
[1769324060642,4.09343197,2945.5,2944.4,3.65348237]
[1769324060841,4.09343197,2945.4,2944.4,3.65348237]
[1769324061042,0.78416431,2945.7,2944.4,3.65348237]
[1769324061238,4.09343737,2945.6,2944.4,3.65348237]
[1769324061437,4.09343737,2945.5,2944.4,3.65348237]
[1769324061638,4.09343737,2945.4,2944.4,3.65348237]
[1769324061938,0.78416431,2945.7,2944.4,3.65348237]
[1769324062138,4.09343992,2945.6,2944.4,3.65348237]
[1769324062442,4.09343992,2945.5,2944.4,3.65348237]
[1769324062637,4.09343992,2945.4,2944.4,3.65348237]
[1769324062839,0.78416431,2945.7,2944.4,3.65348237]
[1769324063038,4.09344359,2945.6,2944.4,3.65348237]
[1769324063245,4.09344359,2945.5,2944.4,3.65348237]
[1769324063440,4.09344359,2945.4,2944.4,3.65348237]
[1769324063737,0.78416431,2945.7,2944.4,3.65348237]
[1769324063938,4.0934526,2945.6,2944.4,3.65348237]
[1769324064143,4.0934526,2945.5,2944.4,3.65348237]
[1769324064346,4.0934526,2945.4,2944.4,3.65348237]
[1769324064542,0.78416431,2945.7,2944.4,3.65348237]
[1769324064742,4.09346699,2945.6,2944.4,3.65348237]
[1769324064943,4.09346699,2945.5,2944.4,3.65348237]
[1769324065142,4.09346699,2945.4,2944.4,3.65348237]
[1769324065343,0.78416431,2945.7,2944.4,3.65348237]
[1769324065533,4.09348304,2945.6,2944.4,3.65348237]
[1769324065740,4.09348304,2945.5,2944.4,3.65348237]
[1769324065937,4.09348304,2945.4,2944.4,3.65348237]
[1769324066134,0.78416431,2945.7,2944.4,3.65348237]
[1769324066346,4.09349835,2945.6,2944.4,3.65348237]
[1769324066543,4.09349835,2945.5,2944.4,3.65348237]
[1769324066743,4.09349835,2945.4,2944.4,3.65348237]
[1769324066945,0.78416431,2945.7,2944.4,3.65348237]
[1769324067147,4.09350165,2945.6,2944.4,3.65348237]
[1769324067348,4.09350165,2945.5,2944.4,3.65348237]
[1769324067549,4.09350165,2945.4,2944.4,3.65348237]
[1769324067847,0.78416431,2945.7,2944.4,3.65348237]
[1769324068049,4.09352423,2945.6,2944.4,3.65348237]
[1769324068239,4.09352423,2945.5,2944.4,3.65348237]
[1769324068440,4.09352423,2945.4,2944.4,3.65348237]
[1769324068641,0.78416431,2945.7,2944.4,3.65348237]
[1769324068843,4.09355128,2945.6,2944.4,3.65348237]
[1769324069143,4.09355128,2945.5,2944.4,3.65348237]
[1769324069345,4.09355128,2945.4,2944.4,3.65348237]
[1769324069545,0.78416431,2945.7,2944.4,3.65348237]
[1769324069844,4.09358642,2945.6,2944.4,3.65348237]
[1769324070046,4.09358642,2945.5,2944.4,3.65348237]
[1769324070245,4.09358642,2945.4,2944.4,3.65348237]
[1769324070447,0.78416431,2945.7,2944.4,3.65348237]
[1769324070647,4.09358875,2945.6,2944.4,3.65348237]
[1769324070849,4.09358875,2945.5,2944.4,3.65348237]
[1769324071052,4.09358875,2945.4,2944.4,3.65348237]
[1769324071252,0.78416431,2945.7,2944.4,3.65348237]
[1769324071455,4.09363301,2945.6,2944.4,3.65348237]
[1769324071752,4.09363301,2945.5,2944.4,3.65348237]
[1769324071941,0.16999,2945.8,2944.6,3.44793314]
[1769324072145,4.09336568,2945.7,2944.6,3.44793314]
[1769324072353,0.16999,2945.8,2944.6,3.44793314]
[1769324072553,4.091838,2945.7,2944.6,3.44793314]
[1769324072754,0.16999,2945.8,2944.6,3.44793314]
[1769324073057,4.09183809,2945.7,2944.6,3.44793314]
[1769324073248,0.16999,2945.8,2944.6,3.44793314]
[1769324073548,4.09125009,2945.7,2944.6,3.44793314]
[1769324073855,0.16999,2945.8,2944.6,3.44793314]
[1769324074055,4.09121569,2945.7,2944.6,3.44793314]
[1769324074357,0.16999,2945.8,2944.6,3.44793314]
[1769324074552,4.09075931,2945.7,2944.6,3.44793314]
[1769324074854,0.16999,2945.8,2944.6,3.44793314]
[1769324075153,4.09075905,2945.7,2944.6,3.44793314]
[1769324075347,0.16999,2945.8,2944.6,3.44793314]
[1769324075549,4.09039982,2945.7,2944.6,3.44793314]
[1769324075853,0.16999,2945.8,2944.6,3.44793314]
[1769324076050,4.09039956,2945.7,2944.6,3.44793314]
[1769324076254,0.95415431,2945.8,2944.6,3.44793314]
[1769324076446,4.09011981,2945.7,2944.6,3.44793314]
[1769324076646,0.95415431,2945.8,2944.6,3.44793314]
[1769324076855,4.09011975,2945.7,2944.6,3.44793314]
[1769324077055,0.95415431,2945.8,2944.6,3.44793314]
[1769324077251,4.09011972,2945.7,2944.6,3.44793314]
[1769324077553,0.95415431,2945.8,2944.6,3.44793314]
[1769324077756,4.08988496,2945.7,2944.6,3.44793314]
[1769324077955,0.95415431,2945.8,2944.6,3.44793314]
[1769324078157,4.08988477,2945.7,2944.6,3.44793314]
[1769324078351,0.95415431,2945.8,2944.6,3.44793314]
[1769324078555,4.08968892,2945.7,2944.6,3.44793314]
[1769324078761,0.95415431,2945.8,2944.6,3.44793314]
[1769324078958,4.08968892,2945.7,2944.6,3.44793314]
[1769324079160,0.95415431,2945.8,2944.6,3.44793314]
[1769324079459,4.08968892,2945.7,2944.6,3.44793314]
[1769324079656,0.95415431,2945.8,2944.6,3.44793314]
[1769324079857,3.68219462,2946.0,2944.7,4.37409744]
[1769324080160,4.08947234,2945.9,2944.7,4.37409744]
[1769324080355,4.08947234,2945.8,2944.7,4.37409744]
[1769324080661,4.46635893,2946.0,2944.7,4.37409744]
[1769324080859,4.08903557,2945.9,2944.7,4.37409744]
[1769324081059,4.08903557,2945.8,2944.7,4.37409744]
[1769324081261,4.46635893,2946.0,2944.7,4.37409744]
[1769324081448,4.08868224,2945.9,2944.7,4.37409744]
[1769324081652,4.08868224,2945.8,2944.7,4.37409744]
[1769324081854,4.46635893,2946.0,2944.7,3.58993313]
[1769324082062,4.0886825,2945.9,2944.7,3.58993313]
[1769324082359,4.46635893,2946.0,2944.7,3.58993313]
[1769324082554,4.08839384,2945.9,2944.7,3.58993313]
[1769324082758,4.46635893,2946.0,2944.7,3.58993313]
[1769324082958,4.08839384,2945.9,2944.7,3.58993313]
[1769324083158,3.68219462,2946.0,2944.7,3.58993313]
[1769324083359,4.08839334,2945.9,2944.7,3.58993313]
[1769324083657,3.68219462,2946.0,2944.7,3.58993313]
[1769324083855,4.08815473,2945.9,2944.7,3.58993313]
[1769324084057,3.68219462,2946.0,2944.7,3.58993313]
[1769324084356,4.08815473,2945.9,2944.7,3.58993313]
[1769324084663,3.68219462,2946.0,2944.7,3.58993313]
[1769324084864,4.08796275,2945.9,2944.7,3.58993313]
[1769324085066,4.08811109,2945.8,2944.7,3.58993313]
[1769324085265,4.46630717,2946.0,2944.3,3.58993313]
[1769324085466,3.45820668,2945.8,2944.3,3.58993313]
[1769324109393,4.08624947,2945.7,2944.3,3.58993313]
[1769324109589,3.45820668,2945.8,2944.3,3.58993313]
[1769324109788,4.08624947,2945.7,2944.3,3.58993313]
[1769324109987,3.45820668,2945.8,2944.3,3.58993313]
[1769324110286,4.08624947,2945.7,2944.3,3.58993313]
[1769324110480,3.45820668,2945.8,2944.3,3.58993313]
[1769324110680,4.08628165,2945.7,2944.3,3.58993313]
[1769324110991,3.45820668,2945.8,2944.3,3.58993313]
[1769324111288,4.08628204,2945.7,2944.3,3.58993313]
[1769324111490,3.45820668,2945.8,2944.3,3.58993313]
[1769324111688,4.08631482,2945.7,2944.3,3.58993313]
[1769324111888,3.45820668,2945.8,2944.3,3.58993313]
[1769324112089,4.08631482,2945.7,2944.3,3.58993313]
[1769324112287,3.45820668,2945.8,2944.3,3.58993313]
[1769324112589,4.08634914,2945.7,2944.3,3.58993313]
[1769324112792,3.45820668,2945.8,2944.3,3.58993313]
[1769324112992,4.08634914,2945.7,2944.3,3.58993313]
[1769324113186,3.45820668,2945.8,2944.3,3.58993313]
[1769324113386,4.08635684,2945.7,2944.3,3.58993313]
[1769324113594,3.45820668,2945.8,2944.3,3.58993313]
[1769324113799,4.0863889,2945.7,2944.3,3.58993313]
[1769324114098,3.45820668,2945.8,2944.3,3.58993313]
[1769324114299,4.08639472,2945.7,2944.3,3.58993313]
[1769324114498,3.45820668,2945.8,2944.3,3.58993313]
[1769324114698,4.08643163,2945.7,2944.3,3.58993313]
[1769324114905,3.45820668,2945.8,2944.3,3.58993313]
[1769324115094,4.08643163,2945.7,2944.3,3.58993313]
[1769324115395,3.45820668,2945.8,2944.3,3.58993313]
[1769324115594,4.0868628,2945.7,2944.3,3.58993313]
[1769324115802,3.45820668,2945.8,2944.3,3.58993313]
[1769324116000,4.08686228,2945.7,2944.3,3.58993313]
[1769324116202,3.45820668,2945.8,2944.3,3.58993313]
[1769324116397,4.08686718,2945.7,2944.3,3.58993313]
[1769324116597,3.45820668,2945.8,2944.3,3.58993313]
[1769324116798,4.08688638,2945.7,2944.3,3.58993313]
[1769324116998,3.45820668,2945.8,2944.3,3.58993313]
[1769324117201,4.08688652,2945.7,2944.3,3.58993313]
[1769324117400,3.45820668,2945.8,2944.3,3.58993313]
[1769324117702,4.08691712,2945.7,2944.3,3.58993313]
[1769324118001,3.45820668,2945.8,2944.3,3.58993313]
[1769324118201,4.08691712,2945.7,2944.3,3.58993313]
[1769324118401,3.45820668,2945.8,2944.3,3.58993313]
[1769324118601,4.08695862,2945.7,2944.3,3.58993313]
[1769324118798,3.45820668,2945.8,2944.3,3.58993313]
[1769324120406,0.16998,2946.1,2944.7,3.6652604]
[1769324120605,4.08688897,2946.0,2944.7,5.6592604]
[1769324120804,4.08688897,2945.9,2944.7,5.6592604]
[1769324121003,4.08688897,2945.8,2944.7,5.6592604]
[1769324121204,0.16998,2946.1,2944.7,5.6592604]
[1769324121407,4.08674122,2946.0,2944.7,5.6592604]
[1769324121606,4.08674122,2945.9,2944.7,5.6592604]
[1769324121805,0.16998,2946.1,2944.7,5.6592604]
[1769324121806,4.08674122,2945.8,2944.7,5.6592604]
[1769324122007,0.16998,2946.1,2944.7,5.6592604]
[1769324122208,4.08678909,2946.0,2944.7,5.6592604]
[1769324122509,4.08678909,2945.9,2944.7,5.6592604]
[1769324122710,4.08678909,2945.8,2944.7,5.6592604]
[1769324122909,0.16998,2946.1,2944.7,5.6592604]
[1769324123208,4.08656829,2946.0,2944.7,5.6592604]
[1769324123402,4.08656829,2945.9,2944.7,5.6592604]
[1769324123601,4.08656829,2945.8,2944.7,5.6592604]
[1769324123802,0.16998,2946.1,2944.7,5.6592604]
[1769324124013,4.08641219,2946.0,2944.7,5.6592604]
[1769324124209,4.08641219,2945.9,2944.7,5.6592604]
[1769324124407,4.08641219,2945.8,2944.7,5.6592604]
[1769324124609,0.16998,2946.1,2944.7,5.6592604]
[1769324124811,4.0862425,2946.0,2944.7,5.6592604]
[1769324125107,4.0862425,2945.9,2944.7,5.6592604]
[1769324125307,0.16998,2946.1,2944.7,5.6592604]
[1769324125512,4.08610227,2946.0,2944.7,5.6592604]
[1769324125711,4.08610227,2945.9,2944.7,5.6592604]
[1769324125914,0.16998,2946.1,2944.7,5.6592604]
[1769324126210,4.08610227,2946.0,2944.7,5.6592604]
[1769324126511,4.08610227,2945.9,2944.7,5.6592604]
[1769324126710,0.16998,2946.1,2944.7,5.6592604]
[1769324126910,4.08599076,2946.0,2944.7,5.6592604]
[1769324127106,4.08599076,2945.9,2944.7,5.6592604]
[1769324127309,0.16998,2946.1,2944.7,5.6592604]
[1769324127509,4.08590193,2946.0,2944.7,5.6592604]
[1769324127707,4.08590193,2945.9,2944.7,5.6592604]
[1769324127905,0.16998,2946.1,2944.7,5.6592604]
[1769324128101,4.08590193,2946.0,2944.7,5.6592604]
[1769324128307,4.08590193,2945.9,2944.7,5.6592604]
[1769324128510,0.16998,2946.1,2944.7,5.6592604]
[1769324128710,4.0858318,2946.0,2944.7,5.6592604]
[1769324128911,4.0858318,2945.9,2944.7,5.6592604]
[1769324129113,0.16998,2946.1,2944.7,5.6592604]
[1769324129411,4.08577984,2946.0,2944.7,5.6592604]
[1769324129612,4.08577984,2945.9,2944.7,5.6592604]
[1769324129813,3.83351344,2946.1,2944.7,5.6592604]
[1769324130014,7.74931349,2946.0,2944.7,5.6592604]
[1769324130310,4.08578005,2945.9,2944.7,5.6592604]
[1769324131116,7.74931349,2945.9,2944.7,5.6592604]
[1769324131317,4.08578005,2945.8,2944.7,1.994]
[1769324131518,3.66353344,2945.7,2944.4,1.994]
[1769324132517,3.66353344,2945.7,2944.3,5.6592604]
[1769324139222,3.66353344,2945.7,2944.3,1.994]
[1769324140326,3.66353344,2945.7,2944.1,0.17009]
[1769324141224,3.66353344,2945.7,2944.1,3.91756777]
[1769324143423,3.66353344,2945.7,2944.1,3.74747777]
[1769324144431,3.75010411,2945.5,2944.1,3.74747777]
[1769324144929,0.78438584,2945.4,2944.1,4.53186361]
[1769324146729,0.78438584,2945.6,2944.1,4.53186361]
[1769324146932,0.78438584,2945.6,2944.4,3.74747777]
[1769324153034,0.78438584,2945.8,2944.5,4.53186361]
[1769324153235,4.08094744,2945.7,2944.5,4.53186361]
[1769324153440,0.78438584,2945.8,2944.5,4.53186361]
[1769324153629,4.08087537,2945.7,2944.5,4.53186361]
[1769324153937,0.16999,2945.9,2944.7,0.78438584]
[1769324154134,4.08079995,2945.8,2944.7,0.78438584]
[1769324154332,4.08079995,2945.7,2944.7,0.78438584]
[1769324154533,0.16999,2945.9,2944.7,0.78438584]
[1769324154734,4.08096332,2945.8,2944.7,0.78438584]
[1769324154941,4.08096332,2945.7,2944.7,0.78438584]
[1769324155242,0.16999,2945.9,2944.7,0.78438584]
[1769324155543,4.0812203,2945.8,2944.7,0.78438584]
[1769324155745,4.0812203,2945.7,2944.7,0.78438584]
[1769324156044,0.16999,2945.9,2944.7,4.53186361]
[1769324156243,4.08147208,2945.8,2944.7,4.53186361]
[1769324156544,4.08147208,2945.7,2944.7,4.53186361]
[1769324156748,0.16999,2945.9,2944.7,4.53186361]
[1769324156941,4.08146917,2945.8,2944.7,4.53186361]
[1769324157243,4.08146917,2945.7,2944.7,4.53186361]
[1769324157432,0.16999,2945.9,2944.7,4.53186361]
[1769324157637,4.08171827,2945.8,2944.7,4.53186361]
[1769324157837,4.08171827,2945.7,2944.7,4.53186361]
[1769324158039,0.16999,2945.9,2944.7,4.53186361]
[1769324158238,4.08205062,2945.8,2944.7,4.53186361]
[1769324158547,4.08205062,2945.7,2944.7,4.53186361]
[1769324158738,0.16999,2945.9,2944.7,4.53186361]
[1769324158939,4.08205062,2945.8,2944.7,4.53186361]
[1769324159143,4.08205062,2945.7,2944.7,4.53186361]
[1769324159344,0.16999,2945.9,2944.7,4.53186361]
[1769324159645,4.08243505,2945.8,2944.7,4.53186361]
[1769324159840,4.08243505,2945.7,2944.7,4.53186361]
[1769324160146,0.16999,2945.9,2944.7,4.53186361]
[1769324160344,4.08262821,2945.8,2944.7,4.53186361]
[1769324160543,4.08262821,2945.7,2944.7,4.53186361]
[1769324160745,0.16999,2945.9,2944.7,4.53186361]
[1769324160947,4.08262215,2945.8,2944.7,4.53186361]
[1769324161146,4.08262215,2945.7,2944.7,4.53186361]
[1769324161341,0.16999,2945.9,2944.7,4.53186361]
[1769324161541,4.08301094,2945.8,2944.7,4.53186361]
[1769324161747,4.08301094,2945.7,2944.7,4.53186361]
[1769324161949,0.16999,2945.9,2944.7,4.53186361]
[1769324162142,4.08301094,2945.8,2944.7,4.53186361]
[1769324162336,4.08301094,2945.7,2944.7,4.53186361]
[1769324162545,0.16999,2945.9,2944.7,4.53186361]
[1769324162747,4.08314858,2945.8,2944.7,4.53186361]
[1769324163040,4.08314858,2945.7,2944.7,4.53186361]
[1769324163245,4.53448995,2946.0,2944.7,4.53186361]
[1769324163450,4.08311779,2945.9,2944.7,4.53186361]
[1769324163750,4.08311779,2945.8,2944.7,4.53186361]
[1769324164053,4.53448995,2946.0,2944.7,4.53186361]
[1769324164242,4.08302859,2945.9,2944.7,4.53186361]
[1769324164440,4.08302859,2945.8,2944.7,4.53186361]
[1769324164640,4.53448995,2946.0,2944.7,4.53186361]
[1769324164841,4.08291707,2945.9,2944.7,4.53186361]
[1769324165046,4.08291707,2945.8,2944.7,4.53186361]
[1769324165247,4.53448995,2946.0,2944.7,4.53186361]
[1769324165448,4.08281349,2945.9,2944.7,4.53186361]
[1769324165655,4.08281349,2945.8,2944.7,4.53186361]
[1769324165853,4.53448995,2946.0,2944.7,4.53186361]
[1769324166146,4.08281349,2945.9,2944.7,4.53186361]
[1769324166351,4.08281349,2945.8,2944.7,4.53186361]
[1769324166549,4.53448995,2946.0,2944.7,4.53186361]
[1769324166751,4.08272062,2945.9,2944.7,4.53186361]
[1769324166951,4.08272062,2945.8,2944.7,4.53186361]
[1769324167154,4.53448995,2946.0,2944.7,4.53186361]
[1769324167349,4.08262815,2945.9,2944.7,4.53186361]
[1769324167648,4.08262815,2945.8,2944.7,4.53186361]
[1769324167849,4.53448995,2946.0,2944.7,4.53186361]
[1769324168149,4.08260693,2945.9,2944.7,4.53186361]
[1769324168453,4.08260693,2945.8,2944.7,4.53186361]
[1769324168650,0.78438584,2946.0,2944.7,4.53186361]
[1769324168860,4.08248559,2945.9,2944.7,4.53186361]
[1769324169055,4.08248559,2945.8,2944.7,4.53186361]
[1769324169350,0.78438584,2946.0,2944.7,4.53186361]
[1769324169556,4.08236737,2945.9,2944.7,4.53186361]
[1769324169758,4.08236737,2945.8,2944.7,4.53186361]
[1769324169957,0.78438584,2946.0,2944.7,4.53186361]
[1769324170257,4.08236737,2945.9,2944.7,4.53186361]
[1769324170455,0.78438584,2946.0,2944.7,4.53186361]
[1769324170658,4.08219651,2945.9,2944.7,4.53186361]
[1769324170955,0.78438584,2946.2,2944.7,4.53186361]
[1769324171146,4.08217258,2946.1,2944.7,4.53186361]
[1769324171347,4.08217258,2946.0,2944.7,4.53186361]
[1769324171554,0.78438584,2946.2,2944.7,4.53186361]
[1769324171759,4.08162879,2946.1,2944.7,4.53186361]
[1769324171956,4.08162879,2946.0,2944.7,4.53186361]
[1769324172150,0.78438584,2946.2,2944.7,4.53186361]
[1769324172351,4.08118898,2946.1,2944.7,4.53186361]
[1769324172648,4.08118898,2946.0,2944.7,4.53186361]
[1769324172844,0.78438584,2946.2,2944.7,4.53186361]
[1769324173058,4.08118884,2946.1,2944.7,4.53186361]
[1769324173258,4.08118884,2946.0,2944.7,4.53186361]
[1769324173560,0.78438584,2946.2,2944.7,4.53186361]
[1769324173855,4.08080606,2946.1,2944.7,4.53186361]
[1769324174057,4.08080606,2946.0,2944.7,4.53186361]
[1769324174254,0.78438584,2946.2,2944.7,4.53186361]
[1769324174456,4.080364,2946.1,2944.7,4.53186361]
[1769324174754,4.080364,2946.0,2944.7,4.53186361]
[1769324174955,0.78438584,2946.2,2944.7,4.53186361]
[1769324175156,4.080364,2946.1,2944.7,4.53186361]
[1769324175355,4.080364,2946.0,2944.7,4.53186361]
[1769324175555,0.78438584,2946.2,2944.9,0.78438584]
[1769324175756,4.09441576,2946.1,2944.9,0.78438584]
[1769324175959,4.09441576,2946.0,2944.9,0.78438584]
[1769324176154,0.78438584,2946.2,2944.9,0.78438584]
[1769324176354,4.09436303,2946.1,2944.9,0.78438584]
[1769324176557,4.09436303,2946.0,2944.9,0.78438584]
[1769324176757,0.78438584,2946.2,2944.9,0.78438584]
[1769324176956,4.09436368,2946.1,2944.9,0.78438584]
[1769324177156,4.09436368,2946.0,2944.9,0.78438584]
[1769324177459,0.78438584,2946.2,2944.9,0.78438584]
[1769324177758,4.094288,2946.1,2944.9,0.78438584]
[1769324177959,4.094288,2946.0,2944.9,0.78438584]
[1769324178160,0.78438584,2946.2,2944.9,0.78438584]
[1769324178459,4.09427408,2946.1,2944.9,0.78438584]
[1769324178759,4.09427408,2946.0,2944.9,0.78438584]
[1769324178958,0.78438584,2946.2,2944.9,0.78438584]
[1769324179159,4.09427412,2946.1,2944.9,0.78438584]
[1769324179360,4.09427412,2946.0,2944.9,0.78438584]
[1769324179659,0.78438584,2946.2,2944.9,0.78438584]
[1769324179851,4.09431167,2946.1,2944.9,0.78438584]
[1769324180054,4.09431167,2946.0,2944.9,0.78438584]
[1769324180255,0.78438584,2946.2,2944.9,0.78438584]
[1769324180551,4.09441495,2946.1,2944.9,0.78438584]
[1769324180748,4.09441495,2946.0,2944.9,0.78438584]
[1769324180962,0.78438584,2946.2,2944.9,0.78438584]
[1769324181160,4.09441495,2946.1,2944.9,0.78438584]
[1769324181466,4.09441495,2946.0,2944.9,0.78438584]
[1769324181652,0.78438584,2946.2,2944.9,0.78438584]
[1769324181854,4.09458344,2946.1,2944.9,0.78438584]
[1769324182060,4.09458344,2946.0,2944.9,0.78438584]
[1769324182260,0.78438584,2946.2,2944.9,0.78438584]
[1769324182461,4.09488298,2946.1,2944.9,0.78438584]
[1769324182662,4.09488298,2946.0,2944.9,0.78438584]
[1769324182857,0.78438584,2946.2,2944.9,0.78438584]
[1769324183156,4.09487968,2946.1,2944.9,0.78438584]
[1769324183357,4.09487968,2946.0,2944.9,0.78438584]
[1769324183556,4.33651087,2946.2,2944.9,0.78438584]
[1769324183854,4.09520722,2946.1,2944.9,0.78438584]
[1769324184055,4.09520722,2946.0,2944.9,0.78438584]
[1769324184255,4.33651087,2946.2,2944.7,4.53186361]
[1769324184463,4.09528204,2946.1,2944.7,4.53186361]
[1769324184763,4.87966788,2946.0,2944.7,4.53186361]
[1769324185061,0.78438584,2946.0,2944.7,4.53186361]
[1769324185259,4.33651087,2946.0,2944.7,4.53186361]
[1769324191164,4.09652552,2945.9,2944.7,4.53186361]
[1769324191361,4.33651087,2946.0,2944.7,4.53186361]
[1769324191567,4.09652552,2945.9,2944.7,4.53186361]
[1769324191761,4.33651087,2946.0,2944.7,4.53186361]
[1769324191961,4.09652565,2945.9,2944.7,4.53186361]
[1769324192164,4.33651087,2946.0,2944.7,4.53186361]
[1769324192357,4.09692894,2945.9,2944.7,4.53186361]
[1769324192662,4.33651087,2946.0,2944.7,4.53186361]
[1769324192863,4.09692894,2945.9,2944.7,4.53186361]
[1769324193163,4.33651087,2946.0,2944.7,4.53186361]
[1769324193363,4.09743429,2945.9,2944.7,4.53186361]
[1769324193666,4.33651087,2946.0,2944.7,4.53186361]
[1769324193855,4.09743403,2945.9,2944.7,4.53186361]
[1769324194060,4.33651087,2946.0,2944.7,4.53186361]
[1769324194261,4.09743429,2945.9,2944.7,4.53186361]
[1769324194561,4.33651087,2946.0,2944.7,4.53186361]
[1769324194762,4.09761133,2945.9,2944.7,4.53186361]
[1769324194970,4.33651087,2946.0,2944.7,4.53186361]
[1769324195270,4.09761133,2945.9,2944.7,4.53186361]
[1769324195471,4.33651087,2946.0,2944.7,4.53186361]
[1769324195671,4.09782437,2945.9,2944.7,4.53186361]
[1769324195869,4.33651087,2946.0,2944.7,4.53186361]
[1769324196071,4.09782378,2945.9,2944.7,4.53186361]
[1769324196369,4.33651087,2946.0,2944.7,4.53186361]
[1769324196670,4.09807911,2945.9,2944.7,4.53186361]
[1769324196968,4.33651087,2946.0,2944.7,4.53186361]
[1769324197166,4.09807885,2945.9,2944.7,4.53186361]
[1769324197471,4.33651087,2946.0,2944.7,4.53186361]
[1769324197668,4.09838603,2945.9,2944.7,4.53186361]
[1769324197868,4.33651087,2946.0,2944.7,4.53186361]
[1769324198167,4.09838603,2945.9,2944.7,4.53186361]
[1769324198366,4.33651087,2946.0,2944.7,4.53186361]
[1769324198567,4.0987506,2945.9,2944.7,4.53186361]
[1769324198769,4.33651087,2946.0,2944.7,4.53186361]
[1769324198967,4.09875047,2945.9,2944.7,4.53186361]
[1769324199168,4.33651087,2946.0,2944.7,4.53186361]
[1769324199471,4.09918564,2945.9,2944.7,4.53186361]
[1769324199768,4.33651087,2946.0,2944.7,4.53186361]
[1769324199964,4.09918564,2945.9,2944.7,4.53186361]
[1769324200167,4.33651087,2946.0,2944.7,4.53186361]
[1769324200371,4.09998794,2945.9,2944.7,4.53186361]
[1769324200671,4.33651087,2946.0,2944.7,4.53186361]
[1769324200863,4.09998809,2945.9,2944.7,4.53186361]
[1769324201159,4.33651087,2946.0,2944.7,4.53186361]
[1769324201363,4.1000608,2945.9,2944.7,4.53186361]
[1769324201564,4.33651087,2946.0,2944.7,4.53186361]
[1769324201765,4.10006067,2945.9,2944.7,4.53186361]
[1769324202064,4.33651087,2946.0,2944.7,4.53186361]
[1769324202260,4.10008771,2945.9,2944.7,4.53186361]
[1769324202471,4.33651087,2946.0,2944.7,4.53186361]
[1769324202772,4.10008745,2945.9,2944.7,4.53186361]
[1769324202971,4.33651087,2946.0,2944.7,4.53186361]
[1769324203171,4.10008771,2945.9,2944.7,4.53186361]
[1769324203469,4.33651087,2946.0,2944.7,4.53186361]
[1769324203671,4.10011781,2945.9,2944.7,4.53186361]
[1769324203870,4.33651087,2946.0,2944.7,4.53186361]
[1769324204072,4.10011781,2945.9,2944.7,4.53186361]
[1769324204272,4.33651087,2946.0,2944.7,4.53186361]
[1769324204572,4.10013399,2945.9,2944.7,4.53186361]
[1769324204761,4.33651087,2946.0,2944.7,4.53186361]
[1769324204966,4.10013412,2945.9,2944.7,3.74747777]
[1769324205170,3.55212503,2946.0,2944.7,3.74747777]
[1769324205475,4.10015339,2945.9,2944.7,3.74747777]
[1769324205772,3.55212503,2946.0,2944.7,3.74747777]
[1769324205970,4.09423204,2945.9,2944.7,3.74747777]
[1769324206175,3.55212503,2946.0,2944.7,3.74747777]
[1769324206374,4.09425131,2945.9,2944.7,3.74747777]
[1769324206577,3.55212503,2946.0,2944.7,3.74747777]
[1769324206779,4.09425118,2945.9,2944.7,3.74747777]
[1769324207076,3.55212503,2946.0,2944.7,3.74747777]
[1769324207276,4.09427097,2945.9,2944.7,3.74747777]
[1769324207477,3.55212503,2946.0,2944.7,3.74747777]
[1769324207678,4.09427097,2945.9,2944.7,3.74747777]
[1769324207872,3.55212503,2946.0,2944.7,3.74747777]
[1769324208073,4.09427084,2945.9,2944.7,3.74747777]
[1769324208371,3.55212503,2946.0,2944.7,3.74747777]
[1769324208569,4.09429452,2945.9,2944.7,3.74747777]
[1769324208769,3.55212503,2946.0,2944.7,3.74747777]
[1769324209068,4.09429465,2945.9,2944.7,3.74747777]
[1769324209268,3.55212503,2946.0,2944.7,3.74747777]
[1769324209468,4.09432185,2945.9,2944.7,3.74747777]
[1769324209668,3.55212503,2946.0,2944.7,3.74747777]